Cogmind - Beta 10.1 @@@ ROGUE MODE // 2020.10.26 @ 01:15:58 Player: WayneKnight Result: Destroyed by S-43 Plague with Heavy Machine Gun Performance ------------- Evolutions (8) 4000 Regions Visited (14) 2800 Robots Destroyed (173) 865 Value Destroyed (6145) 6145 Prototype IDs (50) 1000 Alien Tech Used (0) 0 Bonus (1310) 1310 TOTAL SCORE: 16120 Bonus ------- High Alert Combat Kills 41 Follower Combat Kills 286 Entered Garrisons 200 Used RIF Installer 500 Aligned with FarCom 300 Friendly Fire -17 Cogmind --------- Core Integrity 0/1450 Matter 295/300 Energy 99/100 System Corruption 3% Temperature Cool (0) Movement Core (50) Location -2/Research Parts ------- > --- POWER (2) -------- (None) > --- PROPULSION (6) --- (None) > --- UTILITY (12) ----- Enhanced Optical Array Improved Signal Interpreter Improved Melee Analysis Suite Advanced Target Analyzer Advanced Core Analyzer Hacking Suite Improved Hacking Suite System Shield > --- WEAPON (3) ------- (None) > --- INVENTORY (4) ---- Experimental Sensor Array Power Sword Peak State ------------ > --- POWER ------------ F-cell Engine Backup Power VII > --- PROPULSION ------- Flying Fortress v7 Impulse Thruster Array > --- UTILITY ---------- Large Storage Unit High-capacity Storage Unit Enhanced Optical Array Experimental Sensor Array Improved Signal Interpreter Improved Melee Analysis Suite Advanced Target Analyzer Advanced Core Analyzer Cloaking Device Hacking Suite Improved Hacking Suite System Shield > --- WEAPON ----------- Power Sword Power Sword Lance > --- INVENTORY -------- Particle Reactor Improved Antigrav System Improved Antigrav System Diametric Drive Advanced Weight Redist. System Experimental Sensor Array Advanced ECM Suite Experimental Thermal Shield System Shield Railgun AWS/Autocannon Heavy Missile Launcher Improved Remote Datajack [Rating: 136] Favorites ----------- Power Nuclear Core Engine F-cell Engine Power Core Nuclear Core Reactor Particle Reactor Propulsion Light Treads Treads Light Treads Leg Aluminum Leg Wheel Armored Huge Wheel Hover Unit Combat Airjet Flight Unit Flying Fortress v7 Utility High-capacity Storage Unit Device Experimental Sensor Array Storage High-capacity Storage Unit Processor Improved Signal Interpreter Hackware Hacking Suite Protection Light Armor Plating Weapon Heavy Assault Rifle Energy Gun Improved EM Shotgun Energy Cannon Light EM Pulse Cannon Ballistic Gun Heavy Assault Rifle Ballistic Cannon AWS/Autocannon Launcher Rocket Array Special Weapon Improved Remote Datajack Impact Weapon Flail Slashing Weapon Power Sword Piercing Weapon Lance Build | -11 -10 -10 -9 -9 -9 -8 -8 -7 -7 -6 -5 -4 -3 -2 ------- Run | Scr Mat Min Mat Min Exi Min Mat Fac Gar Fac Fac Fac Res Res Slots Evolved 16 | . . . 2 . . . 2 2 . 2 2 2 2 2 Power 1 | . . . . . . . . . . . . 1 . . Propulsion 4 | . . . 1 . . . . 1 . . . . 1 1 Utility 10 | . . . 1 . . . 1 1 . 2 2 1 1 1 Weapon 1 | . . . . . . . 1 . . . . . . . Parts Attached 240 | 3 10 13 20 . 3 2 32 28 12 30 27 27 21 12 Power 17 | . . 2 2 . . . 1 2 1 4 2 . 1 2 Engine 9 | . . 1 1 . . . . 2 1 2 1 . 1 . Core 7 | . . 1 1 . . . 1 . . 2 1 . . 1 Reactor 1 | . . . . . . . . . . . . . . 1 Propulsion 41 | 3 4 6 9 . . . 7 5 2 1 . . . 4 Treads 24 | 1 2 4 9 . . . 4 4 . . . . . . Leg . | . . . . . . . . . . . . . . . Wheel 9 | 2 2 2 . . . . 2 1 . . . . . . Hover 2 | . . . . . . . . . 2 . . . . . Flight 6 | . . . . . . . 1 . . 1 . . . 4 Utility 93 | . 2 . 3 . 3 . 3 9 5 15 18 20 10 5 Device 40 | . . . . . . . . 4 3 8 9 9 6 1 Storage 11 | . 2 . 3 . 3 . 1 . . 1 . . 1 . Processor 10 | . . . . . . . . 2 1 1 1 2 . 3 Hackware 7 | . . . . . . . . . . 1 2 3 . 1 Protection 25 | . . . . . . . 2 3 1 4 6 6 3 . Artifact . | . . . . . . . . . . . . . . . Weapon 89 | . 4 5 6 . . 2 21 12 4 10 7 7 10 1 Energy Gun 7 | . . . . . . . 5 1 1 . . . . . Energy Cannon 1 | . 1 . . . . . . . . . . . . . Ballistic Gun 36 | . 3 4 5 . . 2 8 6 2 5 . . 1 . Ballistic Cannon 4 | . . . . . . . . . . . . . 4 . Launcher 6 | . . 1 . . . . 3 1 . . . 1 . . Special Weapon 1 | . . . . . . . . . . . . 1 . . Impact Weapon 1 | . . . 1 . . . . . . . . . . . Slashing Weapon 32 | . . . . . . . 5 4 1 5 7 5 4 1 Piercing Weapon 1 | . . . . . . . . . . . . . 1 . Special Melee Weapon . | . . . . . . . . . . . . . . . Unidentified Prototypes 8 | . . . 1 . . . 1 1 . 2 1 . 1 1 Parts Lost 45 | . 1 2 4 . . . 5 3 4 2 5 1 7 11 Power 9 | . . 1 1 . . . 1 . 1 1 1 . 1 2 Propulsion 13 | . 1 . 2 . . . 1 1 3 . . . . 5 Utility 14 | . . . . . . . 1 1 . 1 3 . 5 3 Weapon 9 | . . 1 1 . . . 2 1 . . 1 1 1 1 Highest Loss Streak 6 | . 1 1 1 . . . 3 1 3 1 3 1 4 6 Average Slot Usage (%) 85 | . 99 99 99 100 77 97 89 90 86 77 77 71 65 61 Engine 3 | . 14 12 . . . . . 3 7 3 1 5 4 2 Core 5 | . . 1 10 11 11 11 9 3 . 2 3 . . 1 Treads 12 | . 19 19 30 33 33 33 9 14 7 . . . . . Wheel 3 | . 8 8 1 . . . 8 7 7 . . . . . Flight 1 | . . . . . . . . . . 5 5 5 4 6 Device 4 | . . . . . . . . 5 3 11 13 9 10 5 Storage 21 | . 27 28 33 33 33 33 27 23 23 13 11 10 9 4 Processor 5 | . . . . . . . . 6 8 13 10 10 9 17 Hackware 4 | . . . . . . . . . . 5 9 17 19 13 Protection 2 | . . . . . . . 8 1 1 . 3 3 1 . Energy Gun 1 | . . . . . . . 4 . 3 6 . . . . Ballistic Gun 12 | . 24 27 21 22 . 19 20 16 7 2 1 . . . Slashing Weapon 4 | . . . . . . . 1 4 7 8 11 9 5 4 Naked Turns . | . . . . . . . . . . . . . . . Heaviest Build 126 | 10 41 40 77 77 103 109 115 123 117 119 88 72 126 77 Greatest Support 99 | 20 40 40 69 63 63 63 63 45 40 72 84 84 72 99 Greatest Overweight (x) 7 | . 3 3 7 1 1 1 5 4 4 4 1 . 1 2 Average Overweight (x) 1 | . 1 2 1 1 1 1 3 3 3 . . . . . Largest Inventory Capacity 28 | 6 16 16 24 24 28 28 28 28 28 28 18 18 18 18 Average Capacity 22 | 6 15 16 23 24 27 28 28 28 28 18 18 18 18 12 Most Carried 28 | 6 16 16 24 24 28 28 28 28 28 28 18 18 18 16 Average Carried 21 | 6 13 15 22 23 25 26 27 27 27 18 17 17 16 9 Final Capacity 28 | 6 16 16 24 24 28 28 28 28 28 18 18 18 18 4 Final Carried 28 | 6 16 16 23 24 28 26 28 28 28 18 18 18 18 2 Class Distribution -------------------- 32% | Hauler-Mutant 20% | Hacker-Ninja 18% | Hauler-Skirmisher 9% | Mutant 5% | Hacker-Scout 4% | Ninja 3% | Scout Dominant Class ---------------- Mutant | -10/Materials Mutant | -10/Mines Hauler-Mutant | -9/Materials Hauler-Mutant | -9/Mines Hauler-Mutant | -9/Exiles Hauler-Mutant | -8/Mines Hauler-Skirmisher | -8/Materials Hauler-Mutant | -7/Factory Hauler-Mutant | -7/Garrison Scout | -6/Factory Hacker-Ninja | -5/Factory Hacker-Ninja | -4/Factory Hacker-Ninja | -3/Research Hacker-Ninja | -2/Research Resources | -11 -10 -10 -9 -9 -9 -8 -8 -7 -7 -6 -5 -4 -3 -2 ----------- Run | Scr Mat Min Mat Min Exi Min Mat Fac Gar Fac Fac Fac Res Res Matter Collected 4752 | 246 146 375 800 53 . 57 744 795 219 222 431 365 185 114 Remotely . | . . . . . . . . . . . . . . . Salvage Created 6697 | 61 284 246 1524 58 . . 1108 938 219 358 606 629 534 132 Parts 411 | 2 33 18 95 3 . . 58 78 13 21 31 23 30 6 Haulers Intercepted 7 | . 1 . 3 . . . . . . 1 . 2 . . Recyclers Shooed 2 | . 1 . . . . . . . . . . . . 1 Parts Field Recycled . | . . . . . . . . . . . . . . . Retrieved Matter . | . . . . . . . . . . . . . . . Parts Self-Destructed . | . . . . . . . . . . . . . . . Prevented . | . . . . . . . . . . . . . . . Kills | -11 -10 -10 -9 -9 -9 -8 -8 -7 -7 -6 -5 -4 -3 -2 ------- Run | Scr Mat Min Mat Min Exi Min Mat Fac Gar Fac Fac Fac Res Res Combat Hostiles Destroyed 138 | . 10 18 30 2 . . 24 19 4 4 5 11 9 2 Melee 25 | . . . . . . . 1 5 . 3 5 7 2 2 Guns 83 | . 10 8 30 2 . . 14 14 4 1 . . . . Cannons 7 | . . . . . . . . . . . . . 7 . AOE 23 | . . 10 . . . . 9 . . . . 4 . . Classes Destroyed 15 | 1 4 3 3 . . . 2 1 1 . . . . . Worker 6 | . . . 3 . . . 1 1 . . 1 . . . Builder 2 | . . . . . . . 1 1 . . . . . . Hauler 7 | . 1 . 3 . . . . . . 1 . 2 . . Recycler 2 | 1 . . . . . . . . . . 1 . . . Operator 3 | . . . 2 . . . 1 . . . . . . . Watcher 15 | . 1 . 2 . . . 2 2 . 2 4 . 2 . Swarmer 27 | . 8 2 5 1 . . . 6 . . . 5 . . Grunt 46 | . 2 . 16 1 . . 16 6 2 1 . . 2 . Brawler 2 | . . . 1 . . . 1 . . . . . . . Sentry 21 | . . 2 8 . . . 6 1 . . 1 2 1 . Demolisher 1 | . . 1 . . . . . . . . . . . . Specialist 1 | . . . . . . . . . 1 . . . . . Hunter 3 | . . . . . . . 1 1 1 . . . . . Programmer 24 | . . . . . . . . 5 . 3 4 4 6 2 Assembled 13 | . . 13 . . . . . . . . . . . . Best Kill Streak 11 | 1 3 11 5 1 . . 5 5 3 2 2 5 3 2 Combat Bots Only 11 | . 3 11 5 1 . . 5 4 3 1 1 5 3 2 Max Kills in Single Turn 3 | 1 2 3 2 1 . . 3 2 2 1 1 3 1 1 Gunslinging 1 | . 1 . 1 . . . . 1 1 . . . . . Exploded 3 | . . 3 . . . . 3 . . . . 3 . . Melee 1 | . . . . . . . 1 1 . 1 1 1 1 1 Uniques/NPCs Destroyed . | . . . . . . . . . . . . . . . Combat | -11 -10 -10 -9 -9 -9 -8 -8 -7 -7 -6 -5 -4 -3 -2 -------- Run | Scr Mat Min Mat Min Exi Min Mat Fac Gar Fac Fac Fac Res Res Damage Taken 12269 | . 456 555 1531 33 . . 1462 1499 559 356 1045 633 1607 2533 Core 2931 | . 60 110 170 . . . 228 144 93 105 150 150 261 1460 Absorbed by Shields 75 | . . . . . . . . . 75 . . . . . Core Remaining (%) 72 | 100 . 32 . . . 57 58 . 66 87 85 86 79 . Volleys Fired 320 | 4 45 28 110 8 . . 58 42 14 8 . 3 . . Largest 3 | 2 2 2 2 2 . . 3 3 3 3 . 1 . . Hottest 111 | 40 40 40 46 46 . . 111 96 96 90 . 40 . . Shots Fired 755 | 8 90 51 220 16 . . 160 120 40 23 . 3 24 . Gun 712 | 8 90 46 220 16 . . 150 119 40 23 . . . . Cannon 24 | . . . . . . . . . . . . . 24 . Launcher 18 | . . 5 . . . . 10 1 . . . 2 . . Special 1 | . . . . . . . . . . . . 1 . . Kinetic 692 | 8 90 46 220 16 . . 129 117 27 15 . . 24 . Thermal 21 | . . . . . . . 21 . . . . . . . Explosive 18 | . . 5 . . . . 10 1 . . . 2 . . Electromagnetic 23 | . . . . . . . . 2 13 8 . . . . Robot Hit Streak 27 | 2 9 12 27 5 . . 11 14 5 5 . 5 15 . Robot Miss Streak 5 | 1 3 4 4 5 . . 4 4 5 1 . . 1 . Penetration Max . | . . . . . . . . . . . . . . . Secondary Targets 14 | . 4 . 5 . . . 1 3 1 . . . . . Max Gunslinging Chain 1 | . 1 . 1 . . . 1 1 1 . . . . . Autonomous 24 | . . . . . . . . . . . . . 24 . Shots Hit Robots 693 | 4 56 31 175 9 . . 119 104 33 34 37 44 37 10 Core Hits 346 | 2 22 36 69 3 . . 78 59 19 11 13 17 13 4 Critical Hits 10 | . . 1 3 . . . . . . 1 1 . 3 1 Critical Kills 4 | . . 1 1 . . . . . . . . . 1 1 Critical Parts Destroyed 5 | . . . 2 . . . . . . 1 . . 2 . Melee Attacks 313 | . . . 2 . . . 18 27 1 45 95 81 23 21 Impact 2 | . . . 2 . . . . . . . . . . . Slashing 296 | . . . . . . . 18 27 1 45 95 81 23 6 Piercing 15 | . . . . . . . . . . . . . . 15 Sneak Attacks 8 | . . . . . . . 2 . . . 3 3 . . Combat Hostiles . | . . . . . . . . . . . . . . . Follow-up Attacks 30 | . . . . . . . . 4 . 1 9 11 2 3 Damage Inflicted 18172 | 49 582 1009 2635 143 . 25 2552 1903 508 985 1936 2513 2949 383 Guns 6797 | 49 578 266 2590 126 . . 1153 1368 413 254 . . . . Cannons 2251 | . . . . . . . . . . . . . 2251 . Explosions 2091 | . . 733 . . . . 895 50 95 . . 318 . . Melee 6878 | . . . . . . . 463 477 . 731 1936 2195 698 378 Ramming 155 | . 4 10 45 17 . 25 41 8 . . . . . 5 Kinetic 8575 | 49 578 266 2590 126 . . 934 1332 296 153 . . 2251 . Thermal 314 | . . . . . . . 219 . 95 . . . . . Explosive 1927 | . . 733 . . . . 826 50 . . . 318 . . Electromagnetic 323 | . . . . . . . 69 36 117 101 . . . . Impact . | . . . . . . . . . . . . . . . Slashing 6635 | . . . . . . . 463 477 . 731 1936 2195 698 135 Piercing 243 | . . . . . . . . . . . . . . 243 Highest Corruption 15 | . . . 3 3 3 3 . 5 5 1 6 6 15 3 Average Corruption 3 | . . . 2 3 3 3 . 2 4 1 2 3 13 2 Corruption Purged 1 | . . . . . . . . . 1 . . . . . Effects 164 | . . . 10 9 11 8 . 17 16 1 20 35 37 . Message Errors 41 | . . . 4 2 3 2 . 5 2 1 7 7 8 . Matter Fused 37 | . . . 3 1 4 2 . 7 5 . 3 7 5 . Heat Flow Errors 22 | . . . 2 2 1 2 . . 1 . 3 7 4 . Energy Discharges 13 | . . . 1 1 . . . 1 . . . 7 3 . Data Loss (minor) 20 | . . . . 2 3 2 . 3 2 . 4 4 . . Data Loss (major) 3 | . . . . . . . . . . . 2 . 1 . Misfires 1 | . . . . . . . . 1 . . . . . . Alerts 1 | . . . . . . . . . . . . . 1 . Misdirections 13 | . . . . . . . . . . . . . 13 . Targeting Errors 11 | . . . . 1 . . . . 4 . 1 3 2 . Weapon Failures 2 | . . . . . . . . . 2 . . . . . Overload Shots . | . . . . . . . . . . . . . . . Overflow Damage 1136 | . . 20 . . . . 67 50 . 9 292 255 433 10 Projectiles 407 | . . . . . . . . . . . . . 407 . Explosions 20 | . . 20 . . . . . . . . . . . . Melee 709 | . . . . . . . 67 50 . 9 292 255 26 10 Knockbacks 13 | . . . . . . . . . . . . . 13 . Impact . | . . . . . . . . . . . . . . . Kinetic 12 | . . . . . . . . . . . . . 12 . Secondary 1 | . . . . . . . . . . . . . 1 . Self-Inflicted Damage 190 | . . 5 . . . . 147 27 . . . 9 . 2 Shots 7 | . . . . . . . 5 1 . . . 1 . . Rammed 14 | . 1 2 5 1 . 2 1 1 . . . . . 1 Targets Rammed 14 | . 1 2 5 1 . 2 1 1 . . . . . 1 Kicked . | . . . . . . . . . . . . . . . Crushed . | . . . . . . . . . . . . . . . Highest Temperature 288 | . 30 20 173 288 227 142 273 30 251 143 157 261 236 . Average Temperature 74 | . 12 17 23 133 120 72 88 8 49 76 72 101 103 . Received Heat Transfer 1892 | . 66 107 573 12 . . 558 126 114 45 117 30 27 117 Effects 2 | . . . . 1 . . . . . . . . 1 . Energy Bleed 2 | . . . . 1 . . . . . . . . 1 . Siege Activations . | . . . . . . . . . . . . . . . Robots Corrupted . | . . . . . . . . . . . . . . . Combat Hostiles . | . . . . . . . . . . . . . . . Parts Fried . | . . . . . . . . . . . . . . . Impact Corruptions 1 | . . . . . . . 1 . . . . . . . Robots Melted . | . . . . . . . . . . . . . . . Combat Hostiles . | . . . . . . . . . . . . . . . Parts Melted 1 | . . . . . . . . . . . . 1 . . Heat Transferred 431 | . . . . . . . 331 . 100 . . . . . Parts Sabotaged . | . . . . . . . . . . . . . . . Parts Stolen . | . . . . . . . . . . . . . . . Parts Stripped . | . . . . . . . . . . . . . . . Power Chain Reactions 1 | . . . . . . . . . 1 . . . . . Missiles Intercepted . | . . . . . . . . . . . . . . . Alert | -11 -10 -10 -9 -9 -9 -8 -8 -7 -7 -6 -5 -4 -3 -2 ------- Run | Scr Mat Min Mat Min Exi Min Mat Fac Gar Fac Fac Fac Res Res Peak Influence 472 | 5 140 185 472 246 . . 402 266 177 143 144 331 197 240 Initial 148 | . 3 50 72 79 . . . 99 107 92 24 . 148 95 Average 102 | 4 53 101 175 90 . . 116 158 133 59 61 67 117 119 Maximum Alert Level 2 | . . . 2 1 . . 2 1 . . . 1 . 1 Low Security (%) 83 | 100 100 100 52 91 . 100 73 68 100 100 100 83 100 91 Level 1 15 | . . . 44 8 . . 21 31 . . . 16 . 8 Level 2 1 | . . . 2 . . . 4 . . . . . . . Level 3 . | . . . . . . . . . . . . . . . Level 4 . | . . . . . . . . . . . . . . . Level 5 . | . . . . . . . . . . . . . . . High Security . | . . . . . . . . . . . . . . . Max Security . | . . . . . . . . . . . . . . . Squads Dispatched 27 | . . . 2 . . . 4 3 . 5 1 6 2 4 Investigation 5 | . . . . . . . 2 . . 2 . 1 . . Extermination 12 | . . . . . . . . 3 . 2 1 3 2 1 Reinforcement 10 | . . . 2 . . . 2 . . 1 . 2 . 3 Assault . | . . . . . . . . . . . . . . . Garrison . | . . . . . . . . . . . . . . . Intercept . | . . . . . . . . . . . . . . . Construction Impeded . | . . . . . . . . . . . . . . . Haulers Reinforced 1 | . . . . . . . . . . 1 . . . . Stealth | -11 -10 -10 -9 -9 -9 -8 -8 -7 -7 -6 -5 -4 -3 -2 --------- Run | Scr Mat Min Mat Min Exi Min Mat Fac Gar Fac Fac Fac Res Res Distress Signals 13 | . . . 3 . . . 2 1 . . 2 2 1 2 Communications Jammed . | . . . . . . . . . . . . . . . Distress Signals . | . . . . . . . . . . . . . . . Times Spotted 303 | . 16 28 48 7 . . 36 28 6 12 24 29 18 51 Peak Tracking Total 31 | . 4 11 5 4 . . 5 4 5 3 4 6 3 31 Tactical Retreats 27 | . . 1 1 . . . 3 1 4 2 2 6 3 4 Traps | -11 -10 -10 -9 -9 -9 -8 -8 -7 -7 -6 -5 -4 -3 -2 ------- Run | Scr Mat Min Mat Min Exi Min Mat Fac Gar Fac Fac Fac Res Res Traps Triggered 19 | . . . 2 . . . 2 3 9 1 1 1 . . Indirectly . | . . . . . . . . . . . . . . . Trap Hack Attempts . | . . . . . . . . . . . . . . . Triggered . | . . . . . . . . . . . . . . . Disarmed . | . . . . . . . . . . . . . . . Reprogrammed . | . . . . . . . . . . . . . . . Reused . | . . . . . . . . . . . . . . . Traps Extracted . | . . . . . . . . . . . . . . . Installed . | . . . . . . . . . . . . . . . Triggered . | . . . . . . . . . . . . . . . Exploded 1 | . . . . . 1 . . . . . . . . . Machines | -11 -10 -10 -9 -9 -9 -8 -8 -7 -7 -6 -5 -4 -3 -2 ---------- Run | Scr Mat Min Mat Min Exi Min Mat Fac Gar Fac Fac Fac Res Res Machines Disabled 5 | . . . . . . . 3 . . . . 2 . . Max in Single Turn 2 | . . . . . . . 1 . . . . 2 . . Garrison Access 9 | . . . . . . . . . . 1 4 2 . 2 Machines Sabotaged . | . . . . . . . . . . . . . . . Garrisons Compromised . | . . . . . . . . . . . . . . . Overloaded Fab Kills . | . . . . . . . . . . . . . . . Fab Network Shutdowns . | . . . . . . . . . . . . . . . Hacking | -11 -10 -10 -9 -9 -9 -8 -8 -7 -7 -6 -5 -4 -3 -2 --------- Run | Scr Mat Min Mat Min Exi Min Mat Fac Gar Fac Fac Fac Res Res Machines Accessed 101 | . 9 . 11 . 5 . 11 5 . 15 21 11 8 5 Terminals 58 | . 7 . 7 . . . 8 3 . 11 11 4 5 2 Fabricators 5 | . . . . . . . . . . 1 1 2 1 . Repair Stations 5 | . 1 . 1 . . . 1 . . . 1 . 1 . Recycling Units 8 | . 1 . 1 . . . 2 1 . . 1 1 . 1 Scanalyzers 10 | . . . 2 . . . . . . 2 3 2 1 . Garrison Access 10 | . . . . . . . . 1 . 1 4 2 . 2 Total Hacks 270 | . 22 . 30 . 29 . 26 7 . 40 50 34 23 9 Successful 183 | . 11 . 19 . 29 . 10 3 . 24 40 26 14 7 Failed 87 | . 11 . 11 . . . 16 4 . 16 10 8 9 2 Catastrophic 9 | . 2 . 1 . . . . 2 . 1 . 1 1 1 Database Lockouts . | . . . . . . . . . . . . . . . Manual 114 | . 12 . 9 . 1 . 16 4 . 31 19 7 12 3 Terminals 156 | . 18 . 17 . . . 22 4 . 32 33 13 13 4 Fabricators 14 | . . . . . . . . . . 1 2 8 3 . Repair Stations 10 | . 3 . 2 . . . 2 . . . 2 . 1 . Recycling Units 11 | . 1 . 1 . . . 2 1 . . 1 3 . 2 Scanalyzers 38 | . . . 10 . . . . . . 6 8 8 6 . Garrison Access 12 | . . . . . . . . 2 . 1 4 2 . 3 Terminal Hacks 80 | . 7 . 8 . 29 . 3 . . 7 15 7 2 2 Record 29 | . . . . . 28 . . . . . . . . 1 Part Schematic 2 | . . . . . . . . . . . 1 . 1 . Robot Analysis 6 | . 3 . 1 . . . . . . . 2 . . . Prototype ID Bank 9 | . 3 . 2 . . . . . . . 2 2 . . Branch Access Points 1 | . . . . . . . . . . . 1 . . . Emergency Access Points 1 | . . . . . . . . . . . . . . 1 Terminal Index 3 | . . . . . . . . . . 1 1 . 1 . Scanalyzer Index 1 | . . . . . . . . . . 1 . . . . Garrison Index 3 | . . . . . . . . . . 1 1 1 . . Alert Level 1 | . . . . . . . 1 . . . . . . . Unreport Threat 4 | . . . 2 . . . 1 . . . 1 . . . Locate Traps 6 | . . . 2 . . . . . . . 3 1 . . Recall Investigation 2 | . . . 1 . . . . . . 1 . . . . Recall Reinforcements 2 | . . . . . . . . . . . . 2 . . Hauler Manifests 5 | . 1 . . . . . 1 . . 1 2 . . . Registered Prototypes 1 | . . . . . . . . . . . . 1 . . Zone Layout 3 | . . . . . . . . . . 2 1 . . . EX-Prototype ID Bank 1 | . . . . . 1 . . . . . . . . . Fabricator Hacks 8 | . . . . . . . . . . . 2 4 2 . Load Schematic 4 | . . . . . . . . . . . 1 2 1 . Build 4 | . . . . . . . . . . . 1 2 1 . Repair Station Hacks 9 | . 2 . 2 . . . 2 . . . 2 . 1 . Scan Component 4 | . 1 . 1 . . . 1 . . . 1 . . . Repair 4 | . 1 . 1 . . . 1 . . . 1 . . . Refit 1 | . . . . . . . . . . . . . 1 . Recycling Unit Hacks 9 | . 1 . 1 . . . 2 1 . . 1 2 . 1 Report Inventory 8 | . 1 . 1 . . . 2 1 . . 1 1 . 1 Retrieve Components 1 | . . . . . . . . . . . . 1 . . Scanalyzer 32 | . . . 8 . . . . . . 5 7 8 4 . Insert Component 16 | . . . 4 . . . . . . 2 4 4 2 . Analyze 16 | . . . 4 . . . . . . 3 3 4 2 . Garrison Access Hacks 10 | . . . . . . . . 1 . 1 4 2 . 2 Unlock Access 1 | . . . . . . . . 1 . . . . . . Seal Access 9 | . . . . . . . . . . 1 4 2 . 2 Unauthorized Hacks 35 | . 1 . . . . . 3 1 . 11 9 3 5 2 Terminals 31 | . 1 . . . . . 3 1 . 11 9 1 5 . Track 2 | . . . . . . . . . . 1 1 . . . Assimilate 5 | . . . . . . . 1 . . . 1 1 2 . Botnet 23 | . 1 . . . . . 2 1 . 9 7 . 3 . Operators 1 | . . . . . . . . . . 1 . . . . Fabricators 2 | . . . . . . . . . . . . 2 . . Prioritize 1 | . . . . . . . . . . . . 1 . . Siphon 1 | . . . . . . . . . . . . 1 . . Repair Stations . | . . . . . . . . . . . . . . . Recycling Units 1 | . . . . . . . . . . . . . . 1 Recyclers 1 | . . . . . . . . . . . . . . 1 Scanalyzers . | . . . . . . . . . . . . . . . Garrison Access 1 | . . . . . . . . . . . . . . 1 Watchers 1 | . . . . . . . . . . . . . . 1 Data Cores Recovered . | . . . . . . . . . . . . . . . Used . | . . . . . . . . . . . . . . . Hacking Detections 76 | . 8 . 10 . . . 9 4 . 12 16 8 6 3 Full Trace Events 4 | . . . 1 . . . . . . 2 . 1 . . Feedback Events . | . . . . . . . . . . . . . . . Feedback Blocked . | . . . . . . . . . . . . . . . Robot Schematics Acquired . | . . . . . . . . . . . . . . . Robots Built . | . . . . . . . . . . . . . . . Matter . | . . . . . . . . . . . . . . . Time . | . . . . . . . . . . . . . . . Total Robot Build Rating . | . . . . . . . . . . . . . . . Part Schematics Acquired 15 | . . . 3 . . . . . . 1 4 4 3 . Parts Built 5 | . . . . . . . . . . . 1 3 1 . Matter 994 | . . . . . . . . . . . 285 453 256 . Time 474 | . . . . . . . . . . . 152 194 128 . Total Part Build Rating 26 | . . . . . . . . . . . 5 13 8 . Parts Repaired 4 | . 1 . 1 . . . 1 . . . 1 . . . Time 128 | . 26 . 32 . . . 51 . . . 19 . . . Parts Recycled . | . . . . . . . . . . . . . . . Recycled Matter . | . . . . . . . . . . . . . . . Retrieved Matter . | . . . . . . . . . . . . . . . Retrieved Components 7 | . . . . . . . . . . . . 7 . . Parts Scanalyzed 13 | . . . 3 . . . . . . 1 3 4 2 . Part Schematics Acquired 13 | . . . 3 . . . . . . 1 3 4 2 . Parts Damaged 2 | . . . 1 . . . . . . . . 1 . . Bothacking | -11 -10 -10 -9 -9 -9 -8 -8 -7 -7 -6 -5 -4 -3 -2 ------------ Run | Scr Mat Min Mat Min Exi Min Mat Fac Gar Fac Fac Fac Res Res Used RIF Installer 1 | . . . . . . . . . 1 . . . . . Robots Hacked 1 | . . . . . . . . . . . . 1 . . Non-combat . | . . . . . . . . . . . . . . . Combat 1 | . . . . . . . . . . . . 1 . . Robot Hacks Applied 1 | . . . . . . . . . . . . 1 . . formatsys_high 1 | . . . . . . . . . . . . 1 . . Relay Couplers Released 7 | . . . . . . . . . . 4 3 . . . Programmers 7 | . . . . . . . . . . 4 3 . . . Attached 1 | . . . . . . . . . . . . 1 . . Robots Rewired . | . . . . . . . . . . . . . . . Allies Hacked 1 | . . . . . . . . . . . . . . 1 Hacks Repelled . | . . . . . . . . . . . . . . . Allies | -11 -10 -10 -9 -9 -9 -8 -8 -7 -7 -6 -5 -4 -3 -2 -------- Run | Scr Mat Min Mat Min Exi Min Mat Fac Gar Fac Fac Fac Res Res Total Allies 14 | . . 4 . 2 . . 1 . . 3 1 1 2 . Largest Group 3 | . . 3 2 2 1 . 1 . . 3 1 1 2 2 Highest-Rated Group 93 | . . 40 32 48 31 . 10 . . 93 10 49 88 88 Highest-Rated Ally 49 | . . 31 16 31 31 . 10 . . 31 10 49 44 44 Total Orders 4 | . . . 1 . . . . . . . 1 2 . . STAY 1 | . . . . . . . . . . . . 1 . . ROAM 2 | . . . 1 . . . . . . . 1 . . . FOLLOW 1 | . . . . . . . . . . . . 1 . . Ally Attacks 48 | . . 13 6 15 . . . . . 9 . 5 . . Total Damage 894 | . . 180 63 210 . . . . . 127 . 314 . . Kills 13 | . . 5 1 5 . . . . . . . 2 . . Allies Corrupted 1 | . . . . . . . . . . . . . . 1 Allies Melted . | . . . . . . . . . . . . . . . Intel | -11 -10 -10 -9 -9 -9 -8 -8 -7 -7 -6 -5 -4 -3 -2 ------- Run | Scr Mat Min Mat Min Exi Min Mat Fac Gar Fac Fac Fac Res Res Robot Analysis Total 6 | . 3 . 1 . . . . . . . 2 . . . Derelict Logs Recovered 2 | . . . . 2 . . . . . . . . . . Drone Launches . | . . . . . . . . . . . . . . . Drone Recoveries . | . . . . . . . . . . . . . . . Exploration | -11 -10 -10 -9 -9 -9 -8 -8 -7 -7 -6 -5 -4 -3 -2 ------------- Run | Scr Mat Min Mat Min Exi Min Mat Fac Gar Fac Fac Fac Res Res Turns Passed 21363 | 51 1167 772 2553 651 806 753 4091 2163 427 1414 2465 2518 1017 515 Spaces Moved 16287 | 23 700 531 1109 343 443 416 1671 1090 198 1980 3133 2688 1034 928 Core 115 | . . . . . . . . . . . . . . 115 Treads 2988 | 23 306 96 961 343 443 416 113 238 49 . . . . . Legs . | . . . . . . . . . . . . . . . Wheels 3579 | . 394 435 148 . . . 1558 852 149 43 . . . . Hover . | . . . . . . . . . . . . . . . Flight 9605 | . . . . . . . . . . 1937 3133 2688 1034 813 Fastest Speed 20 | 160 110 110 110 180 180 180 130 130 140 50 50 50 50 20 Average Speed 92 | 160 139 119 175 180 180 180 145 149 154 52 50 50 52 40 Slowest Speed 245 | 160 180 160 180 180 180 180 245 220 200 150 150 50 150 200 Overloaded Moves . | . . . . . . . . . . . . . . . Propulsion Burnouts . | . . . . . . . . . . . . . . . Robots Hopped 91 | . . . . . . . . . . 17 14 27 5 28 Cave-ins Triggered . | . . . . . . . . . . . . . . . Exploration Rate (%) 55 | 3 98 98 84 58 91 70 67 32 31 47 62 38 25 24 Regions Visited 14 Branch Regions 4 Pre-discovered Areas 2 | . . . . 1 1 . . . . . . . . . Known Exits Taken 5 | . . . . . . . . 1 . 1 1 1 1 . Unknown Exits Taken 8 | 1 1 1 1 1 1 1 1 . . . . . . . Scrap Searched 3 | . . 1 . 1 . 1 . . . . . . . . Spaces Dug 91 | . . . 2 . . . 6 6 . 14 32 22 5 4 Terrain Destroyed 226 | . . 35 2 . . . 42 21 5 14 32 64 7 4 Melee 91 | . . . 2 . . . 6 6 . 14 32 22 5 4 Projectile 2 | . . . . . . . . . . . . . 2 . AOE 133 | . . 35 . . . . 36 15 5 . . 42 . . Terrain Rammed . | . . . . . . . . . . . . . . . Walls Destroyed . | . . . . . . . . . . . . . . . Machines Disabled . | . . . . . . . . . . . . . . . Actions | -11 -10 -10 -9 -9 -9 -8 -8 -7 -7 -6 -5 -4 -3 -2 --------- Run | Scr Mat Min Mat Min Exi Min Mat Fac Gar Fac Fac Fac Res Res Total 21500 | 29 810 625 1499 360 456 419 3189 1492 282 2266 3870 3714 1471 1018 Wait 4151 | . 29 38 219 8 . . 1373 274 27 178 617 932 380 76 Move 16104 | 22 699 530 1108 342 442 415 1670 1089 196 1948 3105 2635 1023 880 Hop 77 | . . . . . . . . . . 14 13 25 5 20 Pick Up 135 | . 17 5 18 1 2 . 15 16 4 23 14 10 6 4 Fast Attach 45 | . 3 2 4 . . . 6 5 . 7 6 5 3 4 Attach 70 | . 1 2 5 . . 2 8 6 4 5 13 4 13 7 Detach 34 | . . . 1 . 1 . 4 3 . 1 5 6 11 2 Swap 125 | 3 6 9 11 . 3 . 18 17 8 18 8 18 5 1 Drop 134 | . 9 9 16 . 8 . 18 17 . 23 12 11 5 6 Fire 320 | 4 45 28 110 8 . . 58 42 14 8 . 3 . . Melee 263 | . . . 2 . . . 18 22 1 41 77 65 20 17 Ram 3 | . . 1 . . . . 1 . . . . . . 1 Kick . | . . . . . . . . . . . . . . . Crush 11 | . 1 1 5 1 . 2 . 1 . . . . . . Escape Stasis 28 | . . . . . . . . . 28 . . . . . Rewire . | . . . . . . . . . . . . . . . Trap . | . . . . . . . . . . . . . . . Miscellaneous . | . . . . . . . . . . . . . . . Route ------- -11/Scrapyard -10/Materials (discovered 4 exits: *Mat x3 / [*Min]) -10/Mines (discovered 2 exits: *Mat x2) -9/Materials (discovered 4 exits: *Mat x2 / [*Min x2]) -9/Mines (discovered 2 exits: *Mat / *Exi) -9/Exiles -8/Mines -8/Materials (discovered 3 exits: *Fac x2 / [*Sto]) -7/Factory (discovered 2 exits: *Fac / Gar) -7/Garrison -6/Factory (discovered 3 exits: *Fac x2 / *Ext) -5/Factory (discovered 5 exits: *Fac x3 / Upp x2) -4/Factory (discovered 2 exits: *Res / *Upp) -3/Research -2/Research History --------- Turn | Location | Event 17 | -11/Scrapyard | Discovered new exit (range 3) 52 | -11/Scrapyard | Entered Materials 316 | -10/Materials | Build established: Mutant 381 | -10/Materials | Discovered new exit (range 4) 533 | -10/Materials | Discovered new exit (range 10) 782 | -10/Materials | Discovered new exit (range 12) 873 | -10/Materials | Discovered new exit (range 5) 1077 | -10/Materials | Repaired Assault Rifle 1219 | -10/Materials | Entered Mines 1252 | -10/Mines | Assembled infested the area 1257 | -10/Mines | Assisted by a Guerilla fighting off Assembled 1302 | -10/Mines | Destroyed 11 combat bots 1456 | -10/Mines | Core integrity fell below 50% 1477 | -10/Mines | Received a Mining Laser from a helpful Derelict 1522 | -10/Mines | Joined a pair of Derelicts in attacking an 0b10 outpost 1704 | -10/Mines | Discovered new exit (range 16) 1747 | -10/Mines | Assisted by bots powering up and referring to "LRC-V3" 1917 | -10/Mines | Discovered new exit (range 5) 1991 | -10/Mines | Entered Materials 1991 | -9/Materials | Accompanied by 2 allies 1991 | -9/Materials | Evolved 2 slots: Propulsion x1, Utility x1 2290 | -9/Materials | Build established: Hauler-Mutant 2661 | -9/Materials | Discovered new exit (range 16) 3355 | -9/Materials | Discovered new exit (range 15) 3422 | -9/Materials | Repaired Imp. Treads 3675 | -9/Materials | Discovered new exit (range 16) 3878 | -9/Materials | Discovered new exit (range 13) 4544 | -9/Materials | Entered Mines 4548 | -9/Mines | Learned Materials stockpile data 4649 | -9/Mines | Learned Materials stockpile data 4798 | -9/Mines | Discovered new exit (range 15) 5021 | -9/Mines | Found a damaged Exp. Sensor Array with a note attached 5025 | -9/Mines | Found Prototype Device 5034 | -9/Mines | Learned location of Storage (-8) 5186 | -9/Mines | Deemed a non-threat by the Exiles lab entrance 5188 | -9/Mines | Discovered new exit (range 5) 5195 | -9/Mines | Entered Exiles 5195 | -9/Exiles | Accompanied by 1 ally 5225 | -9/Exiles | Led the pair of lost Derelicts to a safe place 5240 | -9/Exiles | Met 8R-AWN 5271 | -9/Exiles | Met EX-HEX 5389 | -9/Exiles | Met EX-DEC 5420 | -9/Exiles | Visited The Gauntlet 5642 | -9/Exiles | Learned location of Zion (-6) 5684 | -9/Exiles | Met EX-BIN 5716 | -9/Exiles | Aligned with FarCom system 5718 | -9/Exiles | Given EX-Vault access code 5797 | -9/Exiles | Opened EX-Vault 5813 | -9/Exiles | Found AWS/Autocannon 5829 | -9/Exiles | Found Flying Fortress v7 5866 | -9/Exiles | Warned to stay clear of 0b10 Research branches 5874 | -9/Exiles | Exiles lab attacked by MAIN.C 5981 | -9/Exiles | Discovered new exit (range 12) 6001 | -9/Exiles | Stole two prototypes: Flying Fortress v7, AWS/Autocannon 6001 | -9/Exiles | Entered Mines 6254 | -8/Mines | Discovered new exit (range 8) 6754 | -8/Mines | Entered Materials 6754 | -8/Materials | Evolved 2 slots: Utility x1, Weapon x1 7073 | -8/Materials | Build established: Hauler-Skirmisher 7183 | -8/Materials | Discovered new exit (range 7) 7573 | -8/Materials | Build established: Hauler-Mutant 7746 | -8/Materials | Discovered new exit (range 16) 7963 | -8/Materials | Repaired Imp. Assault Rifle 8808 | -8/Materials | Build established: Hauler-Skirmisher 10169 | -8/Materials | Lost 3 parts (1p1n1w) 10750 | -8/Materials | Discovered new exit (range 14) 10845 | -8/Materials | Entered Factory 10845 | -7/Factory | Evolved 2 slots: Propulsion x1, Utility x1 10847 | -7/Factory | FarCom data flow suspended 11618 | -7/Factory | Found Prototype Launcher 11618 | -7/Factory | Identified Rocket Array 11696 | -7/Factory | Discovered new exit (range 10) 11740 | -7/Factory | Build established: Hauler-Tank 12538 | -7/Factory | Build established: Hauler-Mutant 13007 | -7/Factory | Identified exit to Garrison 13008 | -7/Factory | Entered Garrison 13262 | -7/Garrison | Lost 3 parts (1p2n) 13314 | -7/Garrison | Triggered checkpoint 13404 | -7/Garrison | Discovered new exit (range 10) 13418 | -7/Garrison | Identified exit to Factory 13428 | -7/Garrison | Installed Relay Interface Framework 13435 | -7/Garrison | Entered Factory 13435 | -6/Factory | Evolved 2 slots: Utility x2 13817 | -6/Factory | Allied Derelicts emerged from ambush trap array 13834 | -6/Factory | Discovered new exit (range 21) 13854 | -6/Factory | Identified exit to Factory 14049 | -6/Factory | Build established: Ninja 14193 | -6/Factory | Discovered new exit (range 7) 14196 | -6/Factory | Identified exit to Extension 14386 | -6/Factory | Identified Exp. Sensor Array 14667 | -6/Factory | Discovered exit to Factory (range 4) 14849 | -6/Factory | Entered another Factory area 14849 | -5/Factory | Evolved 2 slots: Utility x2 15037 | -5/Factory | Identified exit to Upper Caves 15159 | -5/Factory | Discovered new exit (range 18) 15253 | -5/Factory | Spotted B-75 Beast 15350 | -5/Factory | Discovered new exit (range 18) 15369 | -5/Factory | Identified exit to Factory 15853 | -5/Factory | Fabricated Exp. Sensor Array? 16188 | -5/Factory | Build established: Hacker-Ninja 16658 | -5/Factory | Lost 3 parts (1p1u1w) 17150 | -5/Factory | Discovered exit to Factory (range 21) 17174 | -5/Factory | Repaired Imp. Propulsion Shielding 17314 | -5/Factory | Entered another Factory area 17314 | -4/Factory | Evolved 2 slots: Power x1, Utility x1 17628 | -4/Factory | Discovered new exit (range 4) 17636 | -4/Factory | Identified exit to Upper Caves 17860 | -4/Factory | Fabricated Exp. Sensor Array (x1) 18200 | -4/Factory | Discovered new exit (range 13) 18213 | -4/Factory | Identified exit to Research 19647 | -4/Factory | Fabricated Greatsword? 19832 | -4/Factory | Entered Research 19832 | -3/Research | Evolved 2 slots: Propulsion x1, Utility x1 19978 | -3/Research | Fabricated Impulse Thruster Array (x1) 20216 | -3/Research | System corruption reached 10% 20243 | -3/Research | Lost 4 parts (1p2u1w) 20563 | -3/Research | Spotted B-86 Titan 20706 | -3/Research | Discovered new exit (range 4) 20723 | -3/Research | Identified exit to Research 20797 | -3/Research | Found Prototype Device 20797 | -3/Research | Identified Exp. Thermal Shield 20849 | -3/Research | Entered another Research area 20849 | -2/Research | Accompanied by 2 allies 20849 | -2/Research | Evolved 2 slots: Propulsion x1, Utility x1 21190 | -2/Research | Lost 6 parts (1p2n2u1w) 21283 | -2/Research | Core integrity fell below 50% 21334 | -2/Research | Core integrity fell below 20% 21364 | -2/Research | Destroyed by S-43 Plague with Heavy Machine Gun Last Messages --------------- 21295_ Nuclear Pulse Array destroyed. 21302_ Terminal disabled. 21320_ Penetrated by Slug. 21322_ Slug penetrates Terminal. 21322_ Slug penetrates Wall. 21322_ Slug penetrates Terminal. 21324_ K-01 Serf cleans the Terminal. 21324_ Slug penetrates Wall. 21324_ Penetrated by Slug. 21333_ Nuclear Pulse Array destroyed. 21334_ Detecting nearby Garrison Access. 21341_ Connecting with Garrison Access... >>Seal Access door sealed. 21345_ Slug penetrates Wall. 21350_ Connecting with Terminal... >>Access(Emergency) Found 1 emergency access door: (24,90) Map updated. Map ----- +----------------------------------------------------+ | ??????????????????????# """"???# ""T"" #? | | ??????????????????????# """"???# #? | | ??????????????????????# """"???# #? | | ??????????????????????# """"???# #? | | ??????????????????????? ???# """ #? | | ????????????????????????? ???# """ ## | | ??????????????###+#########+##### """ | | ???????????#### | | ?????????# | | ?????????# p | | ?????????# #########s#########+## | | ?????????????????????# #???????# | | ?????????????????????# #???????# | | ?????????????????????# #???????# | | ?????????????????????# s """#???????# | | ?????????????????????# s """#???????# | | ?????????????????????# """#???????# | | ?????????????????????# s #???????# | | ?????????????????????# s #???????######## | | ??????????????????######/#######?????????????## | | ??????????????????# #???????????????????# | | ??????????????????# ! #???????????????????# | | ??????????????????# #???????????????????# | | ??????????????????# #???????????????????## | | ??????????????????# #????????????????????# | | ??????????????????# @ #????????????????????# | | ??????????????????####/###????????????????????# | | ????????????????????? ??????????????????????# | | ????????????????????? ??????????????????????# | | ???????????????????? Y ?????????????????????# | | ???????????????????? ?????????????????????# | | ???????????????????# #????????????????????# | | ???????????????????## ##????????????????????# | | ????????????????????# #?????????????????????# | | ????????????????????# #?????????????????????# | | ????????????????????# #??????##????????????## | | ????????????????????# #??????################ | | ????????????????????# #???????# ## | | ????????????????????# #???????# #? | | ????????????????????# #???????# """"" #? | | ????????????????????# #???????# """"" #? | | ????????????????????# #???????# """"" #? | | ???????????????????? ???????# #? | | ???????????????????? ???????# #? | | ???????????????????? "" ???????# """"" #? | | ???????????????????? T" ???????# """"" #? | | ???????????????????? ?? ???????# """"" #? | | ????????????????????????????????# #? | | ????????????????????????????????# #? | | ???????????????????????????????###+######+##### | +----------------------------------------------------+ Best States ------------- Heat Dissipation 49 Energy Generation 31 Energy Capacity 500 Matter Stores 300 Matter Capacity 300 Sight Range 22 Robot Scan Range 30 Terrain Scan Density 10 ECM Strength 3 Cloak Strength 2 Additional Mass Support 12 Armor Coverage 225 Resistance: KI 30 Resistance: TH 30 Resistance: EM 25 Propulsion Shielding 66 Utility Shielding 66 Weapon Shielding 66 Melee Speed Boost 20 Evasion (%) 66 Melee Accuracy 6 Target Analysis 8 Core Analysis 10 Recoil Reduction 3 Offensive Hacking 36 Defensive Hacking 10 Relay Coupler Types 6 Relay Coupler Value 1 Item Schematics ----------------- Cmb. Airjet | -9/Materials | Scanalyzed Hacking Suite | -9/Materials | Scanalyzed Nuclear Core | -9/Materials | Scanalyzed Exp. Sensor Array | -6/Factory | Scanalyzed Imp. Powered Armor | -5/Factory | Hacked F-cell Engine | -5/Factory | Scanalyzed Biomechanical Wings | -5/Factory | Scanalyzed Imp. Propulsion Shielding | -5/Factory | Scanalyzed Adv. ECM Suite | -4/Factory | Scanalyzed Cloaking Device | -4/Factory | Scanalyzed Power Sword | -4/Factory | Scanalyzed Greatsword | -4/Factory | Scanalyzed Impulse Thruster Array | -3/Research | Scanalyzed Lyr. Light Armor Plating | -3/Research | Scanalyzed Imp. Remote Force Field | -3/Research | Hacked Robot Schematics ------------------ None Fabricated ------------ Exp. Sensor Array | x1 | -5/Factory Exp. Sensor Array | x1 | -4/Factory Greatsword | x2 | -4/Factory Impulse Thruster Array | x1 | -3/Research Alien Tech Used ----------------- None Achievements -------------- None Challenges ------------ None Game ------ Seed FieldIntegrationRailgun Manual? 0 Play Time 04:15:37 Cumulative 86.9 hours Start 2020.10.25 @ 03:13:01 End 2020.10.26 @ 01:15:58 Sessions 3 Manual Loads 0 Difficulty Rogue Special Mode None Game No. 69 Rogue 69 Adventurer 0 Explorer 0 Win Type - Total 2 Types 2/0/0/0/0/0/0/0/0 Lore% 40 Gallery% 51 Achievement% 40 Wizard Run 0 Options --------- ASCII 1 Keyboard 1 Movement Arrows Keybinds 0 Fullscreen 1 Font 24/Proggy Map View 76x50 Tactical HUD 1 Map Filters NONE Filters NONE Steam 1 RUN: 502f0a8f-eabd-4968-8cad-d78a1ab6de6d